bitfinex-derivatives/quotes_SOLF0:USTF0_20250924
["timestamp","ask_amount","ask_price","bid_price","bid_amount"]
[1758757887964,11.8553,211.39,211.35,115.92]
[1758757888270,11.8553,211.39,211.35,122.97]
[1758757894180,4.2557,211.37,211.35,122.97]
[1758757894579,4.2563,211.34,211.33,344.06]
[1758757894780,4.2563,211.34,211.33,115.86]
[1758757896183,4.2563,211.34,211.33,122.91]
[1758757897185,4.2559,211.36,211.33,115.86]
[1758757897577,4.2559,211.36,211.34,7.05]
[1758757898278,4.2556,211.38,211.34,7.05]
[1758757898685,4.2556,211.38,211.33,115.86]
[1758757898886,4.2556,211.38,211.34,7.05]
[1758757899085,4.2556,211.38,211.33,115.86]
[1758757899280,4.2556,211.38,211.34,7.05]
[1758757899885,4.2556,211.38,211.33,115.86]
[1758757900086,4.2556,211.38,211.34,7.05]
[1758757900582,4.2556,211.38,211.33,115.86]
[1758757901489,4.2559,211.37,211.33,115.86]
[1758757901690,4.2559,211.37,211.34,7.05]
[1758757901992,4.2559,211.37,211.33,115.86]
[1758757902498,68.8783558,211.45,211.34,7.05]
[1758757902792,7.6,211.44,211.34,7.05]
[1758757902991,4.2554,211.39,211.34,7.05]
[1758757903290,4.2554,211.39,211.33,115.86]
[1758757903593,2.7023558,211.48,211.34,7.05]
[1758757904088,66.1796,211.44,211.34,7.05]
[1758757904292,2.7023558,211.42,211.34,7.05]
[1758757904491,2.7023558,211.39,211.29,7.05]
[1758757904792,7.6,211.38,211.3,51.16]
[1758757905391,4.2564,211.34,211.31,7.05]
[1758757906986,4.2564,211.34,211.3,51.16]
[1758757907187,4.2559,211.36,211.31,7.05]
[1758757907386,4.2559,211.36,211.3,51.16]
[1758757907685,4.2564,211.34,211.31,7.05]
[1758757908090,4.2564,211.34,211.3,51.16]
[1758757908591,4.2567,211.33,211.31,7.05]
[1758757908779,4.2567,211.33,211.31,80.09]
[1758757908983,66.1981,211.38,211.32,7.05]
[1758757909795,10.3023558,211.39,211.32,7.05]
[1758757910496,7.6,211.44,211.32,7.05]
[1758757910698,73.7801,211.44,211.32,7.05]
[1758757910995,7.6,211.42,211.32,7.05]
[1758757911592,68.8945558,211.4,211.33,115.92]
[1758757911785,7.6,211.39,211.32,7.05]
[1758757912901,7.6,211.39,211.31,115.94]
[1758757913289,7.6,211.39,211.32,7.05]
[1758757913694,10.3023558,211.42,211.32,7.05]
[1758757915193,4.2556,211.38,211.32,7.05]
[1758757915496,10.3023558,211.42,211.32,7.05]
[1758757916300,4.2558,211.37,211.31,123.0]
[1758757916991,4.256,211.36,211.29,14.11977045]
[1758757917196,1.73333128,211.38,211.3,53.66]
[1758757917398,7.74,211.37,211.3,7.06]
[1758757917589,7.74,211.37,211.3,88.3]
[1758757917788,1.73333128,211.38,211.31,7.06]
[1758757918898,4.2554,211.39,211.31,7.06]
[1758757920200,4.2554,211.39,211.32,4.2565]
[1758757920402,4.2554,211.39,211.33,7.06]
[1758757920697,9.11333128,211.45,211.33,8.79333128]
[1758757921999,9.11333128,211.45,211.37,7.06]
[1758757922292,1.73333128,211.47,211.38,7.06]
[1758757922494,7.38,211.46,211.38,7.06]
[1758757923201,4.2546,211.43,211.38,7.06]
[1758757923401,4.2546,211.43,211.37,62.8556]
[1758757923603,4.2546,211.43,211.37,69.9156]
[1758757924799,9.11333128,211.46,211.38,4.2553]
[1758757925497,1.73333128,211.49,211.4,11.315]
[1758757925699,3.30373224,211.48,211.4,7.06]
[1758757925900,1.73333128,211.46,211.4,7.06]
[1758757926202,1.73333128,211.43,211.38,115.96]
[1758757926403,9.11333128,211.43,211.39,7.06]
[1758757927198,4.2548,211.42,211.39,7.06]
[1758757927699,9.11333128,211.43,211.36,22.22]
[1758757927998,1.73333128,211.4,211.34,7.06]
[1758757928200,1.73333128,211.4,211.34,62.04]
[1758757929200,5.98853128,211.4,211.34,62.04]
[1758757930906,4.2552,211.4,211.34,62.04]
[1758757931096,1.73333128,211.44,211.35,7.06]
[1758757931404,66.1674,211.48,211.35,7.06]
[1758757931405,1.73333128,211.48,211.37,1.73333128]
[1758757931607,13.36643128,211.5,211.4,7.06]
[1758757931907,1.73333128,211.51,211.43,7.06]
[1758757932109,3.30614246,211.5,211.44,116.0]
[1758757932309,1.73333128,211.51,211.44,120.2541]
[1758757932505,3.30480924,211.5,211.44,120.2541]
[1758757932714,5.98633128,211.51,211.44,116.0]
[1758757932907,3.30470985,211.5,211.44,116.0]
[1758757933109,13.36633128,211.51,211.44,116.0]
[1758757933307,3.3032626,211.5,211.44,116.0]
[1758757933509,13.36633128,211.51,211.44,116.0]
[1758757933712,3.303263,211.5,211.43,116.0]
[1758757934003,1.73333128,211.48,211.41,116.0]
[1758757934205,1.73333128,211.48,211.42,7.06]
[1758757936302,1.73333128,211.48,211.42,11.3145]
[1758757936505,1.73333128,211.5,211.42,7.06]
[1758757936700,1.73333128,211.52,211.42,8.79333128]
[1758757938202,1.73333128,211.52,211.44,4.2541]
[1758757938403,7.38,211.51,211.45,7.06]
[1758757938998,5.98663128,211.49,211.45,7.06]
[1758757939199,7.38,211.48,211.43,67.1]
[1758757939413,9.11333128,211.49,211.41,7.06]
[1758757939612,13.36673128,211.49,211.42,63.02]
[1758757941713,4.2536,211.48,211.41,7.06]
[1758757942016,4.2536,211.48,211.42,97.76]
[1758757942916,4.2536,211.48,211.41,123.0]
[1758757943214,4.2536,211.48,211.41,127.2548]
[1758757943415,4.2536,211.48,211.41,11.3148]
[1758757943608,4.2536,211.48,211.42,97.46]
[1758757944417,4.2536,211.48,211.41,11.3148]
[1758757944622,1.73333128,211.44,211.37,7.06]
[1758757944819,9.27333128,211.41,211.37,7.06]
[1758757945820,1.73333128,211.39,211.33,115.92]
[1758757946020,1.73333128,211.39,211.33,7.06]
[1758757946216,1.73333128,211.39,211.34,115.94]
[1758757946412,1.73333128,211.39,211.35,7.06]
[1758757946622,1.73333128,211.39,211.34,115.94]
[1758757946823,1.73333128,211.39,211.35,7.06]
[1758757947225,1.73333128,211.39,211.34,115.94]
[1758757947425,1.73333128,211.39,211.35,7.06]
[1758757948326,1.73333128,211.39,211.34,115.94]
[1758757948918,1.73333128,211.39,211.35,7.06]
[1758757949126,1.73333128,211.39,211.34,115.94]
[1758757949727,1.73333128,211.39,211.36,7.06]
[1758757952222,1.73333128,211.41,211.35,7.06]
[1758757953025,1.73333128,211.45,211.36,7.06]
[1758757953327,1.73333128,211.43,211.36,7.06]
[1758757954427,1.73333128,211.4,211.37,123.0]
[1758757954631,9.27333128,211.4,211.37,123.0]
[1758757955028,9.27333128,211.4,211.33,4.2564]
[1758757955029,1.73333128,211.38,211.33,4.2564]
[1758757955327,1.73333128,211.38,211.37,115.96]
[1758757957532,13.52843128,211.4,211.37,115.96]
[1758757958827,13.52843128,211.4,211.37,123.02]
[1758757960329,13.52843128,211.4,211.37,115.96]
[1758757961036,5.98843128,211.4,211.37,123.02]
[1758757961434,5.98843128,211.4,211.37,122.96]
[1758757965241,1.73333128,211.38,211.37,122.96]
[1758757965941,1.73333128,211.38,211.37,122.94]
[1758757966536,1.73333128,211.38,211.31,7.06]
[1758757966734,66.1759,211.45,211.33,7.06]
[1758757966735,1.73333128,211.36,211.33,7.06]
[1758757966932,1.73333128,211.38,211.33,7.06]
[1758757968141,1.73333128,211.38,211.32,107.26]
[1758757968637,5.98903128,211.38,211.32,111.5166]
[1758757968835,1.73333128,211.38,211.33,7.06]
[1758757969031,1.73333128,211.38,211.29,13.9950051]
[1758757969235,1.73333128,211.38,211.31,7.06]
[1758757969734,1.73333128,211.38,211.33,4.2564]
[1758757969938,1.73333128,211.38,211.35,7.06]
[1758757970235,1.73333128,211.38,211.35,122.96]
[1758757971135,1.73333128,211.38,211.36,7.06]
[1758757971435,1.73333128,211.38,211.33,4.2564]
[1758757971642,1.73333128,211.38,211.34,92.54]
[1758757972336,1.73333128,211.38,211.35,7.06]
[1758757972541,1.73333128,211.38,211.36,115.9]
[1758757972735,1.73333128,211.38,211.37,7.06]
[1758757975644,1.73333128,211.38,211.36,50.3]
[1758757976039,1.73333128,211.38,211.36,57.36]
[1758757976440,1.73333128,211.38,211.36,7.06]
[1758757976841,4.255,211.41,211.35,7.06]
[1758757977146,1.73333128,211.41,211.35,7.06]
[1758757977340,4.2546,211.43,211.37,4.2556]
[1758757977541,5.98793128,211.43,211.38,7.06]
[1758757977747,5.98793128,211.43,211.37,4.2556]
[1758757977748,5.98793128,211.43,211.4,7.06]
[1758757977941,5.98793128,211.43,211.39,115.9]
[1758757978143,5.98793128,211.43,211.4,7.06]
[1758757978339,4.2548,211.42,211.4,7.06]
[1758757978539,2.70746706,211.44,211.39,115.9]
[1758757978749,8.02,211.42,211.39,115.9]
[1758757978945,2.70746706,211.44,211.39,115.9]
[1758757979148,8.02,211.42,211.39,115.9]
[1758757979446,2.70746706,211.44,211.39,115.9]
[1758757979646,8.02,211.42,211.39,115.9]
[1758757980042,8.02,211.4,211.36,7.06]
[1758757980242,8.02,211.4,211.22,8.5172]
[1758757980243,8.02,211.4,211.34,36.76]
[1758757980442,8.02,211.4,211.33,7.06]
[1758757980645,2.70746706,211.38,211.33,48.7]
[1758757980844,2.70746706,211.38,211.34,7.06]
[1758757981250,2.70746706,211.38,211.33,48.7]
[1758757982046,2.70746706,211.38,211.34,7.06]
[1758757982242,4.256,211.36,211.34,7.06]
[1758757982844,2.70746706,211.38,211.31,7.06]
[1758757982845,4.2564,211.34,211.31,7.06]
[1758757983045,4.2564,211.34,211.3,91.96]
[1758757983246,4.2564,211.34,211.31,7.06]
[1758757983446,2.70746706,211.38,211.31,7.06]
[1758757984254,4.256,211.36,211.3,96.217]
[1758757984450,10.05746706,211.38,211.3,99.02]
[1758757984860,3.30596232,211.37,211.3,7.06]
[1758757985051,10.05746706,211.38,211.3,7.06]
[1758757985263,3.3057886,211.37,211.3,7.06]
[1758757985555,10.05746706,211.38,211.3,7.06]
[1758757985852,3.30586769,211.37,211.3,7.06]
[1758757986055,10.05746706,211.38,211.3,7.06]
[1758757986358,4.2563,211.35,211.3,7.06]
[1758757987057,4.2563,211.35,211.29,130.21707182]
[1758757987457,10.05746706,211.38,211.29,130.21707182]
[1758757987458,4.2564,211.34,211.3,7.06]
[1758757987655,7.35,211.33,211.3,7.06]
[1758757987858,4.2564,211.34,211.3,7.06]
[1758757989863,11.6064,211.34,211.29,115.9]
[1758757990254,11.6064,211.34,211.3,7.06]
[1758757990760,4.2564,211.34,211.29,115.9]
[1758757990965,4.2564,211.34,211.3,7.06]
[1758757991462,4.256,211.36,211.3,7.06]
[1758757992458,4.2562,211.35,211.3,7.06]
[1758757992664,4.2562,211.35,211.29,120.1572]
[1758757993962,4.2562,211.35,211.3,7.06]
[1758757994662,4.2562,211.35,211.29,120.1572]
[1758757994864,4.2562,211.35,211.3,7.06]
[1758757995360,4.2562,211.35,211.29,120.1572]
[1758757995959,4.2562,211.35,211.29,127.2172]
[1758757996465,4.2562,211.35,211.3,7.06]
[1758757997060,4.2562,211.35,211.29,120.1572]
[1758757997265,4.2562,211.35,211.3,7.06]
[1758757997564,4.2562,211.35,211.29,127.2172]
[1758757997764,7.35,211.37,211.29,122.96]
[1758757997960,3.30353551,211.36,211.29,122.96]
[1758757998161,7.35,211.37,211.29,122.96]
[1758757998361,3.30401781,211.36,211.29,122.96]
[1758757998660,7.35,211.37,211.29,122.96]
[1758757998861,3.30401144,211.36,211.29,122.96]
[1758757999066,7.35,211.37,211.3,115.9]
[1758757999265,4.2564,211.34,211.3,115.9]
[1758757999562,4.2564,211.34,211.31,7.06]
[1758758000464,4.2564,211.34,211.3,115.9]
[1758758000665,4.2564,211.34,211.31,7.06]
[1758758000863,7.35,211.42,211.32,7.06]
[1758758001067,3.30449031,211.41,211.35,7.06]
[1758758001261,3.30449031,211.4,211.37,7.06]
[1758758001461,7.35,211.42,211.37,7.06]
[1758758001663,3.3044417,211.41,211.37,7.06]
[1758758001861,7.35,211.44,211.37,7.06]
[1758758002061,3.30457876,211.43,211.38,4.2554]
[1758758002263,4.2542,211.45,211.39,7.06]
[1758758002461,4.2542,211.45,211.38,4.2554]
[1758758002462,3.30498482,211.44,211.38,4.2554]
[1758758002662,3.30498482,211.43,211.38,4.2554]
[1758758002965,4.2542,211.45,211.39,7.06]
[1758758003167,3.30499342,211.44,211.37,2.70746706]
[1758758003356,3.30499342,211.43,211.37,2.70746706]
[1758758003559,7.35,211.47,211.38,7.06]
[1758758003767,3.31276717,211.46,211.38,7.06]
[1758758003969,3.31276717,211.45,211.38,7.06]
[1758758004156,7.7,211.43,211.34,13.99366706]
[1758758004357,3.31276717,211.42,211.35,24.98]
[1758758004561,3.31276717,211.41,211.35,24.98]
[1758758004758,11.01276717,211.4,211.35,32.01]
[1758758004962,3.31276717,211.39,211.35,32.01]
[1758758005162,3.31276717,211.39,211.36,7.03]
[1758758006063,2.70746706,211.46,211.35,24.98]
[1758758006269,2.70746706,211.46,211.36,7.03]
[1758758006270,3.31623223,211.45,211.36,7.03]
[1758758006569,3.31623223,211.44,211.36,7.03]
[1758758006767,3.31623223,211.43,211.36,7.03]
[1758758006963,3.31623223,211.42,211.36,7.03]
[1758758007272,4.2544,211.44,211.37,4.2556]
[1758758007570,3.31759755,211.43,211.37,4.2556]
[1758758007775,7.7,211.41,211.38,7.03]
[1758758008666,11.955,211.41,211.38,7.03]
[1758758008867,4.255,211.41,211.36,47.88]
[1758758009266,4.255,211.41,211.36,7.03]
[1758758009468,4.255,211.41,211.37,7.03]
[1758758009672,4.255,211.41,211.36,122.91]
[1758758009866,4.255,211.41,211.37,7.03]
[1758758010065,4.255,211.41,211.36,115.88]
[1758758010469,4.255,211.41,211.37,7.03]
[1758758011074,4.2546,211.43,211.37,7.03]
[1758758011268,3.31786301,211.42,211.37,7.03]
[1758758011467,7.7,211.45,211.37,7.03]
[1758758011667,7.7,211.43,211.37,7.03]
[1758758011861,7.7,211.4,211.37,7.03]
[1758758012066,7.7,211.4,211.35,115.88]
[1758758012268,66.1697,211.47,211.36,7.03]
[1758758012567,4.2546,211.43,211.36,11.2858]
[1758758012771,3.31744171,211.42,211.36,11.2858]
[1758758015575,3.31744171,211.42,211.37,4.2556]
[1758758015965,3.31744171,211.42,211.38,7.03]
[1758758016476,7.7,211.41,211.38,7.03]
[1758758016771,4.2548,211.42,211.37,4.2556]
[1758758017074,11.9548,211.42,211.38,7.03]
[1758758017373,7.7,211.41,211.37,4.2556]
[1758758017577,7.7,211.41,211.37,11.2856]
[1758758017975,11.9544,211.44,211.38,7.03]
[1758758018179,3.31657914,211.43,211.37,11.2856]
[1758758018476,3.31657914,211.42,211.37,4.2556]
[1758758018678,4.2544,211.44,211.37,11.2856]
[1758758018979,3.31652594,211.43,211.37,11.2856]
[1758758019271,4.2544,211.44,211.38,7.03]
[1758758019479,3.31631291,211.43,211.38,7.03]
[1758758019681,4.2544,211.44,211.38,7.03]
[1758758019876,3.31630775,211.43,211.37,4.2556]
[1758758020074,4.2544,211.44,211.38,7.03]
[1758758020279,3.31639823,211.43,211.37,4.2556]
[1758758020578,4.2544,211.44,211.38,7.03]
[1758758020773,3.31614917,211.43,211.37,4.2556]
[1758758020973,4.2544,211.44,211.38,7.03]
[1758758021180,3.3161492,211.43,211.38,7.03]
[1758758021380,4.2544,211.44,211.38,7.03]
[1758758021578,3.31590996,211.43,211.37,4.2556]
[1758758021778,4.2544,211.44,211.38,7.03]
[1758758021974,3.31590996,211.43,211.37,4.2556]
[1758758022179,4.2544,211.44,211.38,7.03]
[1758758022378,3.31580941,211.43,211.37,4.2556]
[1758758022575,4.2544,211.44,211.38,7.03]
[1758758022781,3.3157336,211.43,211.37,4.2556]
[1758758022977,4.2544,211.44,211.38,7.03]
[1758758023184,3.3157336,211.43,211.37,4.2556]
[1758758023378,4.2544,211.44,211.37,4.2556]
[1758758023579,3.31559987,211.43,211.38,7.03]
[1758758023775,4.2544,211.44,211.38,7.03]
[1758758024076,3.31559772,211.43,211.38,7.03]
[1758758024279,4.2544,211.44,211.38,7.03]
[1758758024475,3.31546598,211.43,211.37,4.2556]
[1758758024675,4.2544,211.44,211.38,7.03]
[1758758024877,7.7,211.55,211.43,7.03]
[1758758025074,7.7,211.55,211.45,7.03]
[1758758025280,66.1332,211.59,211.46,7.03]
[1758758025281,4.2518,211.57,211.46,7.03]
[1758758025486,4.2518,211.57,211.44,115.84]
[1758758025487,2.70746706,211.54,211.45,116.16]
[1758758025683,7.7,211.53,211.44,116.2]
[1758758025881,7.7,211.53,211.43,7.03]
[1758758026078,2.70746706,211.54,211.43,123.25]
[1758758026279,7.7,211.53,211.43,123.25]
[1758758027186,7.7,211.53,211.44,116.28]
[1758758028076,7.7,211.53,211.43,7.03]
[1758758028280,4.2532,211.5,211.43,32.93]
[1758758028578,7.7,211.5,211.43,7.03]
[1758758029183,7.7,211.5,211.42,25.9]
[1758758029389,7.7,211.54,211.44,7.03]
[1758758030181,4.2527,211.52,211.44,7.03]
[1758758031188,4.2531,211.5,211.44,7.03]
[1758758031390,4.2531,211.5,211.44,60.63]
[1758758033092,11.9527,211.52,211.45,7.03]
[1758758033293,4.2527,211.52,211.45,7.03]
[1758758033494,7.7,211.55,211.45,7.03]
[1758758034986,4.253,211.51,211.45,7.03]
[1758758036688,7.38,211.49,211.45,7.03]
[1758758036992,7.38,211.53,211.43,2.70746706]
[1758758037192,7.38,211.52,211.42,7.02]
[1758758038189,4.2536,211.48,211.42,7.02]
[1758758039688,7.38,211.49,211.42,11.2745]
[1758758040598,7.62,211.52,211.44,1.73127035]
[1758758041990,4.2532,211.5,211.44,1.73127035]
[1758758042196,4.2532,211.5,211.45,7.06]
[1758758042389,4.2532,211.5,211.44,8.79127035]
[1758758043996,4.2534,211.49,211.44,8.79127035]
[1758758044197,7.62,211.48,211.44,8.79127035]
[1758758044499,7.62,211.48,211.44,1.73127035]
[1758758044799,7.62,211.48,211.45,7.06]
[1758758046902,4.253,211.51,211.44,7.06]
[1758758047105,7.62,211.52,211.44,123.04]
[1758758048209,4.2532,211.5,211.44,123.04]
[1758758048412,7.62,211.52,211.44,123.04]
[1758758049214,4.2534,211.49,211.44,123.04]
[1758758049412,4.2534,211.49,211.43,128.98567035]
[1758758049914,7.62,211.47,211.43,123.0]
[1758758050410,7.62,211.47,211.44,7.06]
[1758758050602,4.2536,211.48,211.44,7.06]
[1758758050805,11.8736,211.48,211.44,7.06]
[1758758051206,11.8736,211.48,211.43,115.94]
[1758758051607,11.8736,211.48,211.44,7.06]
[1758758051814,11.8736,211.48,211.43,121.92557035]
[1758758052010,11.8736,211.48,211.44,7.06]
[1758758052416,7.62,211.47,211.44,7.06]
[1758758054310,7.62,211.48,211.4,7.06]
[1758758054704,7.62,211.48,211.4,41.4]
[1758758055007,1.73127035,211.47,211.4,41.4]
[1758758055204,1.73127035,211.47,211.4,34.34]
[1758758055205,4.2544,211.44,211.4,34.34]
[1758758055408,4.2544,211.44,211.41,7.06]
[1758758055807,4.2539,211.46,211.41,7.06]
[1758758056115,9.35127035,211.52,211.44,1.73127035]
[1758758056314,4.2532,211.5,211.44,1.73127035]
[1758758056819,4.2532,211.5,211.45,4.254]
[1758758057010,4.2532,211.5,211.46,7.06]
[1758758057212,1.73127035,211.56,211.47,7.06]
[1758758057819,1.73127035,211.56,211.48,1.73127035]
[1758758058214,4.2524,211.54,211.48,1.73127035]
[1758758058413,7.62,211.57,211.49,7.06]
[1758758058712,7.62,211.57,211.51,7.06]
[1758758059116,9.35127035,211.57,211.49,115.98]
[1758758059319,9.35127035,211.57,211.48,7.06]
[1758758059916,1.73127035,211.55,211.48,7.06]
[1758758060218,4.2524,211.54,211.48,7.06]
[1758758062314,1.73127035,211.55,211.48,7.06]
[1758758062315,4.252,211.56,211.48,11.3134]
[1758758062520,1.73127035,211.57,211.51,7.06]
[1758758062917,7.62,211.54,211.49,116.0]
[1758758063217,7.62,211.54,211.5,7.06]
[1758758064525,5.98347035,211.55,211.49,116.0]
[1758758064826,13.25347035,211.55,211.49,116.0]
[1758758065324,7.27,211.53,211.49,116.0]
[1758758065720,13.25347035,211.55,211.5,7.05]
[1758758065923,10.56854526,211.54,211.5,7.05]
[1758758066125,7.27,211.54,211.5,7.05]
[1758758066624,5.98347035,211.55,211.49,116.0]
[1758758066826,5.98347035,211.55,211.49,123.05]
[1758758067923,1.73127035,211.55,211.49,123.05]
[1758758068129,13.25297035,211.57,211.5,7.05]
[1758758068330,3.29917495,211.56,211.5,7.05]
[1758758068528,3.29917495,211.55,211.5,7.05]
[1758758068728,13.25297035,211.57,211.5,7.05]
[1758758068929,3.29991863,211.56,211.5,7.05]
[1758758069128,3.29991863,211.55,211.5,7.05]
[1758758069329,13.25297035,211.57,211.51,11.3027]
[1758758069530,3.30046266,211.56,211.51,4.2527]
[1758758069730,3.30046266,211.55,211.51,4.2527]
[1758758069927,11.5221,211.56,211.49,120.2532]
[1758758070128,3.30059058,211.55,211.49,120.2532]
[1758758070428,1.73127035,211.55,211.49,120.2532]
[1758758070634,1.73127035,211.55,211.49,115.94]
[1758758070834,9.00127035,211.53,211.49,115.94]
[1758758071030,9.00127035,211.53,211.49,122.99]
[1758758071830,1.73127035,211.53,211.5,7.05]
[1758758072034,4.2524,211.54,211.49,120.1933]
[1758758072230,11.5224,211.54,211.5,7.05]
[1758758072432,7.27,211.53,211.5,7.05]
[1758758072837,4.2524,211.54,211.5,7.05]
[1758758073029,4.2524,211.54,211.49,120.1933]
[1758758073234,4.2524,211.54,211.5,7.05]
[1758758073430,1.73127035,211.55,211.51,7.05]
[1758758073638,13.25307035,211.57,211.51,7.05]
[1758758073833,10.57176474,211.56,211.51,7.05]
[1758758074140,3.30176474,211.55,211.5,4.253]
[1758758074338,7.27,211.56,211.5,11.303]
[1758758074541,3.30187925,211.55,211.51,7.05]
[1758758074731,7.27,211.56,211.5,11.303]
[1758758074932,3.30308036,211.55,211.51,7.05]
[1758758075133,7.27,211.56,211.5,11.303]
[1758758075436,3.30314322,211.55,211.51,7.05]
[1758758075632,11.522,211.56,211.5,11.303]
[1758758075836,3.30327089,211.55,211.51,7.05]
[1758758076038,11.522,211.56,211.51,7.05]
[1758758076237,3.30353914,211.55,211.51,7.05]
[1758758076536,11.522,211.56,211.51,7.05]
[1758758076746,3.30336759,211.55,211.51,7.05]
[1758758077038,13.25327035,211.56,211.51,7.05]
[1758758077240,3.30344622,211.55,211.51,7.05]
[1758758077542,13.25327035,211.56,211.5,4.253]
[1758758077739,3.3032996,211.55,211.51,7.05]
[1758758078042,5.98327035,211.56,211.5,7.05]
[1758758078340,3.30330039,211.55,211.5,7.05]
[1758758078641,5.98287035,211.58,211.5,7.05]
[1758758078843,3.30325356,211.57,211.5,7.05]
[1758758079142,5.98287035,211.58,211.5,7.05]
[1758758079444,5.98287035,211.58,211.52,4.2526]
[1758758079445,3.3028579,211.57,211.52,4.2526]
[1758758079741,5.98287035,211.58,211.52,11.3026]
[1758758080043,3.30288521,211.57,211.52,4.2526]
[1758758080343,5.98287035,211.58,211.53,7.05]
[1758758080545,3.30243578,211.57,211.55,7.05]
[1758758080744,5.98287035,211.58,211.55,7.05]
[1758758080944,3.30243539,211.57,211.55,7.05]
[1758758081144,4.2516,211.58,211.55,7.05]
[1758758081340,3.30206791,211.57,211.55,7.05]
[1758758081641,4.2516,211.58,211.55,7.05]
[1758758081841,3.30250638,211.57,211.55,7.05]
[1758758082144,13.25247035,211.6,211.54,122.91]
[1758758082343,3.30212431,211.59,211.55,7.05]
[1758758082643,3.30212431,211.58,211.55,7.05]
[1758758082847,7.27,211.59,211.55,7.05]
[1758758083046,3.3021248,211.58,211.55,7.05]
[1758758083248,7.27,211.59,211.55,7.05]
[1758758083439,3.30131627,211.58,211.55,7.05]
[1758758083640,7.27,211.59,211.55,7.05]
[1758758083840,3.3014115,211.58,211.55,7.05]
[1758758084046,7.27,211.59,211.55,7.05]
[1758758084344,3.3014115,211.58,211.55,7.05]
[1758758084545,5.98247035,211.6,211.54,122.91]
[1758758084843,3.30125829,211.59,211.55,7.05]
[1758758085049,1.73127035,211.67,211.55,74.92457035]
[1758758085235,3.30107952,211.66,211.59,7.05]
[1758758085435,3.30107952,211.65,211.61,7.05]
[1758758085643,1.73127035,211.67,211.61,7.05]
[1758758085944,3.29892643,211.66,211.6,122.89]
[1758758086246,7.27,211.65,211.61,7.05]
[1758758087441,7.27,211.64,211.6,115.84]
[1758758087642,7.27,211.62,211.61,115.82]
[1758758087848,7.27,211.62,211.57,7.05]
[1758758088144,7.27,211.62,211.59,115.8]
[1758758090248,7.27,211.62,211.57,7.05]
[1758758090443,7.27,211.6,211.58,89.6]
[1758758090843,1.73127035,211.61,211.58,89.6]
[1758758091349,1.73127035,211.61,211.57,118.21]
[1758758092138,1.73127035,211.61,211.58,7.05]
[1758758092950,9.00127035,211.61,211.58,7.05]
[1758758093145,7.27,211.6,211.54,7.05]
[1758758093446,7.27,211.6,211.52,4.2526]
[1758758093447,9.00127035,211.59,211.55,122.85]
[1758758093746,13.25267035,211.59,211.55,122.85]
[1758758093945,1.73127035,211.59,211.54,115.78]
[1758758094248,9.23127035,211.59,211.54,115.78]
[1758758094451,1.73127035,211.59,211.54,115.78]
[1758758094651,1.73127035,211.59,211.55,7.05]
[1758758095045,1.73127035,211.59,211.54,115.78]
[1758758095449,1.73127035,211.61,211.55,7.05]
[1758758096848,1.73127035,211.61,211.55,11.3019]